Cogmind - Beta 14 @@@ ROGUE MODE // 2025.03.28 @ 01:03:09 Player: Zeta Lockhart Result: Destroyed by Y-54 Guardian with Flak Gun Performance ------------- Evolutions (4) 2000 Regions Visited (11) 2200 Robots Destroyed (98) 490 Value Destroyed (3585) 3585 Prototype IDs (17) 340 Alien Tech Used (0) 0 Bonus (5609) 5609 TOTAL SCORE: 14224 Bonus ------- Triggered High Security 500 High Alert Combat Kills 1429 Follower Combat Kills 3376 Met Imprinter 300 Was Imprinted 300 Built Enhanced Grunts 300 Friendly Fire -596 Cogmind --------- Core Integrity 0/850 Matter 267/300 Energy 119/350 System Corruption 12% Temperature Cool (18) Movement Core (1850) Ox36 Location -6/Hub_04(d) Parts ------- > --- POWER (2) -------- Quantum Reactor > --- PROPULSION (4) --- (None) > --- UTILITY (5) ------ Coolant Injector Huge Storage Unit Weapon Cycler > --- WEAPON (4) ------- RU-N14's Throwing Claymores > --- INVENTORY (25) --- Reinforced Deuterium Engine Angular Momentum Engine Light Angular Momentum Engine Light Angular Momentum Engine Light Antimatter Reactor Quantum Reactor Wheel Advanced Heat Sink Advanced Heat Sink Advanced Heat Sink Improved Core Shielding Improved Light Armor Plating Layered Medium Armor Plating Plasma Rifle Advanced Variable Charge Gun Magnetic Acceleration Cannon RU-N14's Throwing Claymores (3) RU-N14's Throwing Claymores (3) Peak State ------------ > --- POWER ------------ Light Angular Momentum Engine Neutrino Core > --- PROPULSION ------- Centrium Heavy Treads Centrium Heavy Treads > --- UTILITY ---------- Advanced Heat Sink Advanced Heat Sink Huge Storage Unit Weapon Cycler Centrium Medium Armor Plating > --- WEAPON ----------- Wave Gun Advanced Variable Charge Gun Neutron Cannon KE Penetrator > --- INVENTORY -------- Angular Momentum Engine Light Angular Momentum Engine Light Angular Momentum Engine Quantum Reactor Quantum Reactor Wheel Advanced Heat Sink Advanced Heat Sink Advanced Heat Sink Matter Compressor Improved Core Shielding Improved Light Armor Plating Layered Medium Armor Plating Centrium Medium Armor Plating Minigun Barrage Gun KE Penetrator Magnetic Acceleration Cannon Bore Cannon Bore Cannon RU-N14's Throwing Claymores RU-N14's Throwing Claymores RU-N14's Throwing Claymores RU-N14's Throwing Claymores Self-destruct Interrupter [Rating: 111] Favorites ----------- Power Light Nuclear Core Engine Light Angular Momentum Engine Power Core Light Nuclear Core Reactor Light Antimatter Reactor Propulsion Compact Wheel Treads Centrium Heavy Treads Wheel Compact Wheel Utility Huge Storage Unit Device Advanced Heat Sink Storage Huge Storage Unit Processor Targeting Computer Protection Improved Light Armor Plating Weapon Light Assault Rifle Energy Gun EM Pulse Gun Energy Cannon Neutron Cannon Ballistic Gun Light Assault Rifle Ballistic Cannon Light Cannon Special Weapon RU-N14's Throwing Claymores Build | -11 -10 -10 -9 -9 -7 -6 -6 -6 -6 -6 -6 ------- Run | Yrd Mat Min Mat Min Zio Pro Fac Ext Cet Arc Hub Slots Evolved 8 | . . . 2 . . . 6 . . . . Power 1 | . . . . . . . 1 . . . . Propulsion 2 | . . . . . . . 2 . . . . Utility 3 | . . . 1 . . . 2 . . . . Weapon 2 | . . . 1 . . . 1 . . . . Parts Attached 111 | 8 1 1 5 . 1 9 26 30 10 5 15 Power 18 | 2 . . 1 . . 2 3 4 2 1 3 Engine 9 | 2 . . 1 . . . . 3 2 . 1 Core 5 | . . . . . . 1 3 . . 1 . Reactor 4 | . . . . . . 1 . 1 . . 2 Propulsion 18 | 2 . . 1 . . 2 3 8 2 . . Treads 2 | . . . . . . . . . 2 . . Leg . | . . . . . . . . . . . . Wheel 16 | 2 . . 1 . . 2 3 8 . . . Hover . | . . . . . . . . . . . . Flight . | . . . . . . . . . . . . Utility 35 | 1 1 . 2 . 1 3 12 8 3 2 2 Device 20 | . . . . . 1 1 9 5 1 2 1 Storage 2 | 1 . . 1 . . . . . . . . Processor 3 | . 1 . . . . 1 1 . . . . Hackware . | . . . . . . . . . . . . Protection 10 | . . . 1 . . 1 2 3 2 . 1 Artifact . | . . . . . . . . . . . . Weapon 40 | 3 . 1 1 . . 2 8 10 3 2 10 Energy Gun 13 | 2 . . . . . 1 1 6 1 1 1 Energy Cannon 3 | . . . . . . . . . 1 . 2 Ballistic Gun 16 | 1 . 1 1 . . . 5 3 1 1 3 Ballistic Cannon 6 | . . . . . . 1 2 1 . . 2 Launcher . | . . . . . . . . . . . . Special Weapon 2 | . . . . . . . . . . . 2 Impact Weapon . | . . . . . . . . . . . . Slashing Weapon . | . . . . . . . . . . . . Piercing Weapon . | . . . . . . . . . . . . Special Melee Weapon . | . . . . . . . . . . . . Unidentified Prototypes 7 | . . . . . 1 . . 1 4 . 1 Corrupted Parts 1 | . . . . . . . . . 1 . . System Corruption 9 | . . . . . . . . . 9 . . Parts Lost 43 | . . 1 2 . . 4 4 14 4 . 14 Power 6 | . . . 1 . . 1 . 2 . . 2 Propulsion 10 | . . . 1 . . 2 1 4 . . 2 Utility 8 | . . . . . . . 1 3 1 . 3 Weapon 19 | . . 1 . . . 1 2 5 3 . 7 Highest Loss Streak 11 | . . 1 2 . . 1 2 6 3 . 11 To Critical Strikes 1 | . . . . . . . . . 1 . . Average Slot Usage (%) 96 | . 97 99 97 100 100 99 95 97 95 86 84 Engine 5 | . 14 14 11 11 11 2 . 6 13 9 3 Core 4 | . . . . . . 2 13 5 . 3 5 Reactor 2 | . . . . . . 5 . . . . 2 Treads 2 | . . . . . . . . . 2 13 12 Wheel 19 | . 28 28 20 22 22 21 25 25 19 . . Device 11 | . . . . . 2 6 16 14 20 20 19 Storage 8 | . 14 14 11 11 11 11 6 6 6 6 6 Processor 4 | . 11 14 11 11 8 4 2 4 . . . Protection 7 | . . . 10 11 11 11 6 6 6 6 5 Energy Gun 9 | . 28 26 11 11 11 6 4 15 12 13 5 Energy Cannon 1 | . . . . . . . . . 5 6 5 Ballistic Gun 12 | . . 1 22 22 22 15 11 5 6 6 10 Ballistic Cannon 4 | . . . . . . 11 6 3 . . 3 Peak Build Rating 111 | 6 7 7 12 13 29 32 55 60 106 111 111 Average Rating 46 | 4 6 6 10 12 18 26 48 56 78 108 106 On Entrance 36 | . 6 7 7 12 13 29 28 55 60 106 111 Naked Turns . | . . . . . . . . . . . . Heaviest Build 149 | 12 12 12 97 97 117 118 125 132 139 137 149 Greatest Support 160 | 32 32 32 32 32 32 32 58 58 160 160 160 Greatest Overweight (x) 6 | . . . 6 3 3 6 2 3 6 . 1 Average Overweight (x) 2 | . . . 2 3 3 2 1 2 1 . . Largest Inventory Capacity 25 | 8 8 8 25 25 25 25 25 25 25 25 25 Average Capacity 24 | 7 8 8 23 25 25 25 25 25 25 25 25 Most Carried 25 | 4 3 7 17 17 24 25 25 25 25 25 25 Average Carried 22 | 2 2 4 10 16 21 24 23 24 24 25 24 Final Capacity 25 | 8 8 8 25 25 25 25 25 25 25 25 25 Final Carried 25 | 2 3 6 16 17 24 25 25 24 25 25 18 Class Distribution -------------------- 49% | Scavenger-Tank 24% | Gunner 17% | Scavenger-Gunner 4% | Mutant 3% | Tank Dominant Class ---------------- Mutant | -10/Materials Mutant | -10/Mines Gunner | -9/Materials Gunner | -9/Mines Gunner | -7/Zion Scavenger-Tank | -6/Proximity Caves Scavenger-Tank | -6/Factory Scavenger-Gunner | -6/Extension Scavenger-Tank | -6/Cetus Scavenger-Tank | -6/Archives Scavenger-Tank | -6/Hub_04(d) Resources | -11 -10 -10 -9 -9 -7 -6 -6 -6 -6 -6 -6 ----------- Run | Yrd Mat Min Mat Min Zio Pro Fac Ext Cet Arc Hub Matter Collected 3409 | 268 . 36 144 . . 257 744 920 141 120 779 Remotely . | . . . . . . . . . . . . Salvage Created 4373 | 86 . 226 578 . . 140 429 1306 85 . 1523 Parts 216 | 2 . 14 36 . . 8 39 44 5 . 68 Haulers Intercepted 1 | . . . . . . . . . . . 1 Recyclers Shooed 14 | . . 1 6 . . . 2 4 . . 1 Parts Field Recycled . | . . . . . . . . . . . . Retrieved Matter . | . . . . . . . . . . . . Parts Self-Destructed 26 | . . . . . . 26 . . . . . Prevented 6 | . . . . . . 6 . . . . . Kills | -11 -10 -10 -9 -9 -7 -6 -6 -6 -6 -6 -6 ------- Run | Yrd Mat Min Mat Min Zio Pro Fac Ext Cet Arc Hub Combat Hostiles Destroyed 62 | . . 7 4 . . 4 9 13 1 . 24 Guns 40 | . . 6 4 . . 2 5 12 . . 11 Cannons 18 | . . . . . . 2 4 1 1 . 10 AOE 4 | . . 1 . . . . . . . . 3 Classes Destroyed 18 | 1 . 2 5 . . 1 2 2 . . 5 Worker 11 | . . . 1 . . . 3 4 . . 3 Builder 3 | . . . 1 . . . 2 . . . . Tunneler 1 | . . . . . . . . 1 . . . Hauler 1 | . . . . . . . . . . . 1 Recycler 11 | 1 . 1 4 . . . . 4 . . 1 Carrier 1 | . . . . . . . . . . . 1 Mechanic 1 | . . . . . . . . . . . 1 Operator 2 | . . . 1 . . . . 1 . . . Watcher 4 | . . . 2 . . . . . 1 . 1 Swarmer 13 | . . 6 . . . 2 . 2 . . 3 Grunt 19 | . . 1 3 . . 1 2 7 . . 5 Brawler 3 | . . . . . . . . 2 . . 1 Duelist 1 | . . . . . . . . . . . 1 Protector 2 | . . . . . . . . . . . 2 Sentry 7 | . . . 1 . . . 1 2 . . 3 Specialist 2 | . . . . . . . 1 . . . 1 Hunter 10 | . . . . . . . 3 . . . 7 Programmer 4 | . . . . . . 1 2 . . . 1 Cetus Guard 1 | . . . . . . . . . 1 . . Enhanced Grunt 1 | . . . . . . . . . . . 1 Best Kill Streak 13 | 1 . 4 9 . . 1 4 5 1 . 13 Combat Bots Only 11 | . . 4 3 . . 1 2 3 1 . 11 Max Kills in Single Turn 4 | 1 . 1 2 . . 1 1 2 1 . 4 Gunslinging . | . . . . . . . . . . . . Exploded 2 | . . 1 . . . . . . . . 2 Melee . | . . . . . . . . . . . . Uniques/NPCs Destroyed . | . . . . . . . . . . . . Combat | -11 -10 -10 -9 -9 -7 -6 -6 -6 -6 -6 -6 -------- Run | Yrd Mat Min Mat Min Zio Pro Fac Ext Cet Arc Hub Hostile Shots Fired 975 | . . 24 18 . . 61 64 220 19 12 557 Missed 322 | . . 7 10 . . 29 21 78 1 3 173 Damage Taken 8478 | . . 176 92 . . 541 821 1793 509 217 4329 Core 970 | . . 9 16 . . 93 90 233 182 23 324 Absorbed by Shields 206 | . . . . . . . . 206 . . . Reduced by Siege Mode 308 | . . . . . . . . . . 7 301 Core Remaining (%) 89 | 100 . 96 . . . 72 . . . . . Volleys Fired 246 | 1 1 18 26 . . 19 40 59 7 6 69 Largest 4 | 1 2 2 3 . . 3 4 4 4 4 4 Hottest 284 | 20 80 80 80 . . 115 171 247 273 279 284 Shots Fired 770 | 1 2 35 78 . . 54 130 205 23 18 224 Gun 605 | 1 2 35 78 . . 34 90 186 17 14 148 Cannon 160 | . . . . . . 20 40 19 6 4 71 Launcher . | . . . . . . . . . . . . Special 5 | . . . . . . . . . . . 5 Kinetic 447 | 1 . 1 52 . . 53 116 64 12 6 142 Thermal 228 | . . . . . . . 13 115 11 12 77 Explosive 5 | . . . . . . . . . . . 5 Electromagnetic 90 | . 2 34 26 . . 1 1 26 . . . Robot Hit Streak 15 | 1 . 6 9 . . 10 11 11 6 5 15 Robot Miss Streak 9 | . 2 3 3 . . 6 9 6 4 4 5 Penetration Max 1 | . . . . . . . 1 . . . 1 Secondary Targets 11 | . . 2 1 . . . . 5 . . 3 Max Gunslinging Chain 1 | . . 1 1 . . . . 1 . . 1 Shots Hit Robots 458 | 1 . 20 50 . . 30 66 138 13 12 128 Core Hits 244 | 1 . 9 23 . . 13 31 78 9 8 72 Critical Kills 5 | . . . . . . . . . 1 . 4 Critical Parts Destroyed 7 | . . . . . . . 2 . . . 5 Critical Strikes 29 | . . . . . . . 4 11 3 . 11 Burn 10 | . . . . . . . 1 7 1 . 1 Destroy 14 | . . . . . . . 2 . 2 . 10 Blast 4 | . . . . . . . 1 3 . . . Corrupt 1 | . . . . . . . . 1 . . . Melee Attacks . | . . . . . . . . . . . . Impact . | . . . . . . . . . . . . Slashing . | . . . . . . . . . . . . Piercing . | . . . . . . . . . . . . Sneak Attacks . | . . . . . . . . . . . . Combat Hostiles . | . . . . . . . . . . . . Follow-up Attacks . | . . . . . . . . . . . . Damage Inflicted 11926 | 15 . 311 633 . . 366 1727 3111 318 328 5117 Guns 7699 | 15 . 241 597 . . 211 932 2735 265 253 2450 Cannons 2592 | . . . . . . 155 695 339 53 75 1275 Explosions 1425 | . . 70 36 . . . 100 37 . . 1182 Melee . | . . . . . . . . . . . . Ramming . | . . . . . . . . . . . . Kinetic 5793 | 15 . . 316 . . 366 1489 994 200 137 2276 Thermal 4013 | . . 70 36 . . . 128 1856 118 191 1614 Explosive 1117 | . . . . . . . 100 . . . 1017 Electromagnetic 793 | . . 241 281 . . . 10 261 . . . Impact . | . . . . . . . . . . . . Slashing 210 | . . . . . . . . . . . 210 Piercing . | . . . . . . . . . . . . Highest Corruption 12 | . . . . . . 2 1 1 10 10 12 Average Corruption 3 | . . . . . . 1 1 1 2 10 10 Corruption Purged . | . . . . . . . . . . . . Corruption Blocked . | . . . . . . . . . . . . Effects 85 | . . . . . . 28 7 5 7 7 31 Message Errors 12 | . . . . . . 4 1 1 2 1 3 Matter Fused 23 | . . . . . . 6 3 1 2 3 8 Heat Flow Errors 8 | . . . . . . 2 . 1 1 . 4 Energy Discharges 17 | . . . . . . 7 1 . 1 1 7 Parts Fused 1 | . . . . . . . . . . . 1 Data Loss (minor) 11 | . . . . . . 7 . 1 1 1 1 Data Loss (major) 2 | . . . . . . . 2 . . . . Misfires 3 | . . . . . . 1 . . . . 2 Alerts 4 | . . . . . . 1 . . . . 3 Weapon Failures 4 | . . . . . . . . 1 . 1 2 Overload Shots . | . . . . . . . . . . . . Overflow Damage 242 | . . 6 . . . . 136 . . . 100 Projectiles 195 | . . . . . . . 119 . . . 76 Explosions 47 | . . 6 . . . . 17 . . . 24 Melee . | . . . . . . . . . . . . Knockbacks 15 | . . . . . . 1 7 3 . . 4 Impact . | . . . . . . . . . . . . Kinetic 15 | . . . . . . 1 7 3 . . 4 Secondary . | . . . . . . . . . . . . Self-Inflicted Damage 90 | . . 26 . . . . 64 . . . . Shots 2 | . . 1 . . . . 1 . . . . Rammed . | . . . . . . . . . . . . Targets Rammed . | . . . . . . . . . . . . Kicked . | . . . . . . . . . . . . Crushed . | . . . . . . . . . . . . Highest Temperature 483 | . 18 78 125 . . 249 279 483 224 300 360 Average Temperature 80 | . 12 31 36 . . 69 66 82 95 135 118 Received Heat Transfer 1647 | . . 12 42 . . 108 90 534 27 54 780 Effects 6 | . . . . . . . 3 2 . . 1 Shutdowns 2 | . . . . . . . . 2 . . . Interference 3 | . . . . . . . 3 . . . . Short Circuit 1 | . . . . . . . . . . . 1 Siege Activations 6 | . . . . . . . . . . 1 5 Total Turns 86 | . . . . . . . . . . 7 79 Longest Duration 43 | . . . . . . . . . . 7 43 Robots Corrupted . | . . . . . . . . . . . . Combat Hostiles . | . . . . . . . . . . . . Parts Fried 2 | . . . . . . . . 2 . . . Impact Corruptions . | . . . . . . . . . . . . Robots Melted . | . . . . . . . . . . . . Combat Hostiles . | . . . . . . . . . . . . Parts Melted 8 | . . . . . . . 1 7 . . . Heat Transferred 6788 | . . 50 50 . . . 370 4234 296 148 1640 Parts Sabotaged . | . . . . . . . . . . . . Parts Stolen . | . . . . . . . . . . . . Parts Stripped . | . . . . . . . . . . . . Power Chain Reactions 4 | . . 1 1 . . . . 1 . . 1 Alert | -11 -10 -10 -9 -9 -7 -6 -6 -6 -6 -6 -6 ------- Run | Yrd Mat Min Mat Min Zio Pro Fac Ext Cet Arc Hub Peak Influence 2459 | 5 77 251 293 114 . . 577 1255 743 404 2459 Initial 701 | . 3 30 97 114 . . . 246 701 208 141 Average 610 | 1 52 105 174 114 . . 198 822 693 364 1184 Maximum Alert Level 5 | . . 1 1 . . . 2 4 3 2 5 Low Security (%) 28 | 100 100 92 58 100 . . 57 . . . 14 Level 1 14 | . . 7 41 . . . 20 17 . 28 4 Level 2 16 | . . . . . . . 22 23 13 71 7 Level 3 16 | . . . . . . . . 24 86 . 2 Level 4 18 | . . . . . . . . 33 . . 44 Level 5 . | . . . . . . . . . . . . High Security 5 | . . . . . . . . . . . 25 Max Security . | . . . . . . . . . . . . Squads Dispatched 30 | . 2 . . . . . 9 4 . . 15 Investigation 4 | . . . . . . . 2 2 . . . Extermination 3 | . . . . . . . 2 . . . 1 Reinforcement 10 | . 2 . . . . . 4 1 . . 3 Assault 11 | . . . . . . . . 1 . . 10 Garrison 2 | . . . . . . . 1 . . . 1 Intercept . | . . . . . . . . . . . . Searches Triggered . | . . . . . . . . . . . . Construction Impeded 3 | . . . . . . . 2 1 . . . Haulers Reinforced . | . . . . . . . . . . . . Active Scanning Responses . | . . . . . . . . . . . . Cargo Convoy Interrupts . | . . . . . . . . . . . . Stealth | -11 -10 -10 -9 -9 -7 -6 -6 -6 -6 -6 -6 --------- Run | Yrd Mat Min Mat Min Zio Pro Fac Ext Cet Arc Hub Distress Signals 8 | . . . 1 . . . 1 3 1 . 2 Communications Jammed . | . . . . . . . . . . . . Distress Signals . | . . . . . . . . . . . . Times Spotted 196 | . 2 8 8 . . 19 30 47 5 10 67 Peak Tracking Total 10 | . 1 5 3 . . 4 6 7 5 1 10 Tactical Retreats 12 | . . 3 . . . 2 3 2 . . 2 Traps | -11 -10 -10 -9 -9 -7 -6 -6 -6 -6 -6 -6 ------- Run | Yrd Mat Min Mat Min Zio Pro Fac Ext Cet Arc Hub Traps Triggered 7 | . . . . . . . . 7 . . . Indirectly . | . . . . . . . . . . . . Trap Hack Attempts . | . . . . . . . . . . . . Triggered . | . . . . . . . . . . . . Disarmed . | . . . . . . . . . . . . Reprogrammed 4 | . . . 4 . . . . . . . . Reused 2 | . . . 2 . . . . . . . . Traps Extracted . | . . . . . . . . . . . . Installed . | . . . . . . . . . . . . Triggered 2 | . . . 2 . . . . . . . . Machines | -11 -10 -10 -9 -9 -7 -6 -6 -6 -6 -6 -6 ---------- Run | Yrd Mat Min Mat Min Zio Pro Fac Ext Cet Arc Hub Machines Disabled 22 | . 1 . . . . . 4 2 . 1 14 Max in Single Turn 2 | . 1 . . . . . 1 . . 1 2 Garrison Access 1 | . . . . . . . . . . . 1 Machines Repaired . | . . . . . . . . . . . . Machines Dismantled . | . . . . . . . . . . . . Machines Sabotaged . | . . . . . . . . . . . . Overloaded Fab Kills . | . . . . . . . . . . . . Hacking | -11 -10 -10 -9 -9 -7 -6 -6 -6 -6 -6 -6 --------- Run | Yrd Mat Min Mat Min Zio Pro Fac Ext Cet Arc Hub Machines Accessed 12 | . 1 . 1 . . 1 2 4 3 . . Terminals 10 | . 1 . 1 . . 1 . 4 3 . . Fabricators 1 | . . . . . . . 1 . . . . Repair Stations . | . . . . . . . . . . . . Recycling Units . | . . . . . . . . . . . . Scanalyzers . | . . . . . . . . . . . . Garrison Access 1 | . . . . . . . 1 . . . . Total Hacks 28 | . 3 . 6 . . 1 4 9 5 . . Successful 9 | . 1 . 3 . . 1 . 3 1 . . Failed 19 | . 2 . 3 . . . 4 6 4 . . Catastrophic 2 | . . . . . . . 1 . 1 . . Database Lockouts . | . . . . . . . . . . . . Manual 33 | . . . . . . . 10 3 3 . 17 Terminals 24 | . 3 . 6 . . 1 . 9 5 . . Fabricators 2 | . . . . . . . 2 . . . . Repair Stations . | . . . . . . . . . . . . Recycling Units . | . . . . . . . . . . . . Scanalyzers . | . . . . . . . . . . . . Garrison Access 2 | . . . . . . . 2 . . . . Terminal Hacks 9 | . 1 . 3 . . 1 . 3 1 . . Record 1 | . . . . . . 1 . . . . . Open Door 4 | . . . . . . . . 3 1 . . Locate Traps 1 | . . . 1 . . . . . . . . Reprogram Traps 1 | . . . 1 . . . . . . . . Zone Layout 2 | . 1 . 1 . . . . . . . . Fabricator Hacks . | . . . . . . . . . . . . Repair Station Hacks . | . . . . . . . . . . . . Recycling Unit Hacks . | . . . . . . . . . . . . Scanalyzer . | . . . . . . . . . . . . Garrison Access Hacks . | . . . . . . . . . . . . Unauthorized Hacks . | . . . . . . . . . . . . Terminals . | . . . . . . . . . . . . Fabricators . | . . . . . . . . . . . . Repair Stations . | . . . . . . . . . . . . Recycling Units . | . . . . . . . . . . . . Scanalyzers . | . . . . . . . . . . . . Garrison Access . | . . . . . . . . . . . . Data Cores Recovered 1 | . . . 1 . . . . . . . . Used . | . . . . . . . . . . . . Hacking Detections 11 | . 1 . 1 . . . 2 3 4 . . Full Trace Events 3 | . . . . . . . 1 2 . . . Feedback Events . | . . . . . . . . . . . . Feedback Blocked . | . . . . . . . . . . . . Robot Schematics Acquired . | . . . . . . . . . . . . Robots Built . | . . . . . . . . . . . . Authchips . | . . . . . . . . . . . . Time . | . . . . . . . . . . . . Total Robot Build Rating . | . . . . . . . . . . . . Part Schematics Acquired 10 | . . . . . . . . . . . 10 Parts Built . | . . . . . . . . . . . . Authchips . | . . . . . . . . . . . . Time . | . . . . . . . . . . . . Total Part Build Rating . | . . . . . . . . . . . . Parts Repaired . | . . . . . . . . . . . . Time . | . . . . . . . . . . . . Parts Recycled . | . . . . . . . . . . . . Recycled Matter . | . . . . . . . . . . . . Retrieved Matter . | . . . . . . . . . . . . Retrieved Components . | . . . . . . . . . . . . Parts Scanalyzed . | . . . . . . . . . . . . Part Schematics Acquired . | . . . . . . . . . . . . Parts Damaged . | . . . . . . . . . . . . Bothacking | -11 -10 -10 -9 -9 -7 -6 -6 -6 -6 -6 -6 ------------ Run | Yrd Mat Min Mat Min Zio Pro Fac Ext Cet Arc Hub Used RIF Installer . | . . . . . . . . . . . . Robots Hacked . | . . . . . . . . . . . . Non-combat . | . . . . . . . . . . . . Combat . | . . . . . . . . . . . . Robot Hacks Applied . | . . . . . . . . . . . . Relay Couplers Released 3 | . . . . . . . . . . . 3 Machine Destruction 3 | . . . . . . . . . . . 3 Fabnet Peak Effective % . | . . . . . . . . . . . . Robots Rewired 11 | . . . . . . . . 11 . . . Allies Hacked . | . . . . . . . . . . . . Hacks Repelled . | . . . . . . . . . . . . Allies | -11 -10 -10 -9 -9 -7 -6 -6 -6 -6 -6 -6 -------- Run | Yrd Mat Min Mat Min Zio Pro Fac Ext Cet Arc Hub Total Allies 32 | . . . . . 4 . 7 16 5 . . Largest Group 10 | . . . . . 4 4 8 10 10 10 9 Highest-Rated Group 607 | . . . . . 150 146 392 492 607 607 582 Highest-Rated Ally 159 | . . . . . 40 40 96 159 142 96 96 Zionite Dispatches 3 | . . . . . . . 2 1 . . . Light 1 | . . . . . . . 1 . . . . Recon 1 | . . . . . . . . 1 . . . Demo 1 | . . . . . . . 1 . . . . Total Orders . | . . . . . . . . . . . . Ally Attacks 434 | . . . . . . 40 67 152 29 20 126 Total Damage 15927 | . . . . . . 957 2444 4956 766 757 6047 Kills 98 | . . . . . . 15 13 28 3 5 34 Allies Corrupted . | . . . . . . . . . . . . Allies Melted . | . . . . . . . . . . . . Intel | -11 -10 -10 -9 -9 -7 -6 -6 -6 -6 -6 -6 ------- Run | Yrd Mat Min Mat Min Zio Pro Fac Ext Cet Arc Hub Robot Analysis Total . | . . . . . . . . . . . . Derelict Logs Recovered 6 | . . 3 . 1 . 2 . . . . . Drone Launches . | . . . . . . . . . . . . Drone Recoveries . | . . . . . . . . . . . . Zionite Intel Received 4 | . . . . . . . 1 . . . 3 Branch Access 1 | . . . . . . . 1 . . . . Prototype Schematics 1 | . . . . . . . . . . . 1 Unaware Analyses 1 | . . . . . . . . . . . 1 Active Terminals 1 | . . . . . . . . . . . 1 Exploration | -11 -10 -10 -9 -9 -7 -6 -6 -6 -6 -6 -6 ------------- Run | Yrd Mat Min Mat Min Zio Pro Fac Ext Cet Arc Hub Turns Passed 6983 | 59 61 249 254 49 873 1841 992 1144 452 145 864 Spaces Moved 4145 | 43 56 186 117 34 592 1213 623 554 287 64 376 Core 4 | 4 . . . . . . . . . . . Treads 499 | . . . . . . . . . 59 64 376 Legs . | . . . . . . . . . . . . Wheels 3642 | 39 56 186 117 34 592 1213 623 554 228 . . Hover . | . . . . . . . . . . . . Flight . | . . . . . . . . . . . . Fastest Speed 50 | 50 100 100 100 145 145 130 110 110 115 160 160 Average Speed 134 | 95 100 100 132 145 145 144 120 120 125 160 160 Slowest Speed 240 | 100 100 100 190 145 145 190 130 131 240 160 240 Overloaded Moves . | . . . . . . . . . . . . Propulsion Burnouts . | . . . . . . . . . . . . Robots Hopped . | . . . . . . . . . . . . Cave-ins Triggered . | . . . . . . . . . . . . Exploration Rate (%) 43 | 4 15 43 14 12 77 88 21 62 73 80 37 Regions Visited 11 Branch Regions 8 Pre-discovered Areas 4 | . . 3 . 1 . . . . . . . Known Exits Taken 2 | . . . . . . 1 1 . . . . Unknown Exits Taken 9 | 1 1 1 1 1 1 . . 1 1 1 . Scrap Searched 6 | . . . . 1 2 3 . . . . . Spaces Dug 2 | . . . . . . . 1 . . . 1 Terrain Destroyed 162 | . . 6 2 . . . 49 8 2 1 94 Melee . | . . . . . . . . . . . . Projectile 74 | . . . . . . . 21 4 2 1 46 AOE 88 | . . 6 2 . . . 28 4 . . 48 Terrain Rammed . | . . . . . . . . . . . . Walls Destroyed . | . . . . . . . . . . . . Machines Disabled . | . . . . . . . . . . . . Actions | -11 -10 -10 -9 -9 -7 -6 -6 -6 -6 -6 -6 --------- Run | Yrd Mat Min Mat Min Zio Pro Fac Ext Cet Arc Hub Total 5067 | 59 59 214 163 34 606 1261 790 896 369 99 517 Wait 280 | . . 6 . . 6 8 62 93 49 16 40 Move 4134 | 42 55 185 116 33 591 1212 622 553 286 63 376 Hop . | . . . . . . . . . . . . Pick Up 103 | 8 2 4 15 1 8 4 20 24 8 2 7 Fast Attach 22 | . . . . . . 4 5 6 3 2 2 Attach 52 | 6 1 1 4 . . 4 11 12 4 . 9 Detach 1 | . . . . . . 1 . . . . . Swap 38 | 2 . . 1 . 1 1 10 13 3 3 4 Drop 73 | . . . 1 . . 4 20 22 9 7 10 Fire 246 | 1 1 18 26 . . 19 40 59 7 6 69 Melee . | . . . . . . . . . . . . Ram . | . . . . . . . . . . . . Kick . | . . . . . . . . . . . . Crush . | . . . . . . . . . . . . Escape Stasis 48 | . . . . . . . . 48 . . . Rewire 70 | . . . . . . 4 . 66 . . . Trap . | . . . . . . . . . . . . Miscellaneous . | . . . . . . . . . . . . Route ------- -11/Scrapyard -10/Materials -10/Mines -9/Materials -9/Mines -7/Zion -6/Proximity Caves -6/Factory (discovered 4 exits: *Low x2 / *Ext x2) -6/Extension (discovered 2 exits: [*Fac] / *Cet) -6/Cetus -6/Archives (discovered 3 exits: [*Fac] / *Hub x2) -6/Hub_04(d) History --------- Turn | Location | Event 26 | -11/Scrapyard | Discovered new exit (range 15) 60 | -11/Scrapyard | Entered Materials 65 | -10/Materials | Discovered new exit (range 14) 121 | -10/Materials | Entered Mines 124 | -10/Mines | Learned location of Mines (-8) 129 | -10/Mines | Learned location of Zion (-7) 174 | -10/Mines | Received a Rocket Launcher from a helpful Derelict 302 | -10/Mines | Build established: Mutant 328 | -10/Mines | Discovered new exit (range 13) 370 | -10/Mines | Entered Materials 370 | -9/Materials | Evolved 2 slots: Utility x1, Weapon x1 459 | -9/Materials | Discovered new exit (range 16) 624 | -9/Materials | Entered Mines 651 | -9/Mines | Build established: Gunner 669 | -9/Mines | A Derelict revealed a hidden shortcut to a safe place 673 | -9/Mines | Entered Zion 832 | -7/Zion | Found Prototype Special Weapon 834 | -7/Zion | Found Prototype Special Weapon 836 | -7/Zion | Found Prototype Special Weapon 839 | -7/Zion | Found Prototype Special Weapon 977 | -7/Zion | Given A8's code to call for help 1091 | -7/Zion | Met Imprinter 1117 | -7/Zion | Imprinted 1119 | -7/Zion | Declared Zion's savior 1351 | -7/Zion | Found Prototype Device 1352 | -7/Zion | Identified Phasing AFG 1519 | -7/Zion | Discovered new exit (range 15) 1546 | -7/Zion | Entered Proximity Caves 1546 | -6/Proximity Caves | Accompanied by 4 allies 1678 | -6/Proximity Caves | Attracted the attention of an 0b10 checkpoint 2171 | -6/Proximity Caves | Learned 8 Factory zone layouts 2563 | -6/Proximity Caves | Build established: Scavenger-Tank 3349 | -6/Proximity Caves | Identified exit to Factory 3387 | -6/Proximity Caves | Entered Factory 3387 | -6/Factory | Accompanied by 3 allies 3387 | -6/Factory | Evolved 6 slots: Power x1, Propulsion x2, Utility x2, Weapon x1 3388 | -6/Factory | Identified exit to Extension 3438 | -6/Factory | Zion Light squad teleported in 3469 | -6/Factory | Zion Demo squad teleported in 3812 | -6/Factory | Lost 4 allies 4025 | -6/Factory | Enhanced Grunt warped into view, answering call for help 4035 | -6/Factory | Enhanced Grunt warped into view, answering call for help 4168 | -6/Factory | Garrison activated, responded to threat 4219 | -6/Factory | Retrieved Zion intel report: Branch Access 4219 | -6/Factory | Identified exit to Lower Caves 4269 | -6/Factory | Build established: Scavenger-Gunner 4379 | -6/Factory | Entered Extension 4379 | -6/Extension | Accompanied by 2 allies 4529 | -6/Extension | Disrupted transfer network 4692 | -6/Extension | Zion Recon squad teleported in 4700 | -6/Extension | Rescued A7 4823 | -6/Extension | Rescued a captive Derelict 4825 | -6/Extension | Rescued a captive Derelict 4881 | -6/Extension | Spotted B-75 Beast 4929 | -6/Extension | Spotted B-75 Beast 4930 | -6/Extension | Lost 3 parts (3w) 4940 | -6/Extension | Allies destroyed B-75 Beast 4951 | -6/Extension | Allies destroyed B-75 Beast 4975 | -6/Extension | Lost 5 allies 4997 | -6/Extension | Lost 6 parts (2p1n2u1w) 5079 | -6/Extension | First assault squad dispatched 5197 | -6/Extension | Discovered new exit (range 16) 5198 | -6/Extension | Discovered new exit (range 15) 5269 | -6/Extension | Rescued a captive Derelict 5278 | -6/Extension | Rescued a captive Derelict 5327 | -6/Extension | Lost 3 parts (2n1u) 5505 | -6/Extension | Build established: Scavenger-Tank 5523 | -6/Extension | Entered Cetus 5523 | -6/Cetus | Accompanied by 10 allies (A7) 5528 | -6/Cetus | Acquired a Cetus Manufacturing Module code from A7 5539 | -6/Cetus | Spotted Cetus Guard 5539 | -6/Cetus | Spotted Cetus Guard 5541 | -6/Cetus | Spotted Cetus Guard 5541 | -6/Cetus | Spotted Cetus Guard 5547 | -6/Cetus | Destroyed Cetus Guard 5549 | -6/Cetus | Core integrity fell below 50% 5551 | -6/Cetus | Allies destroyed Cetus Guard 5560 | -6/Cetus | Allies destroyed Cetus Guard 5574 | -6/Cetus | Allies destroyed Cetus Guard 5574 | -6/Cetus | Extracted ID and sensor layout for unrecognized location from A7's data core 5585 | -6/Cetus | Lost 3 parts (1u2w) 5605 | -6/Cetus | Lost 5 allies 5662 | -6/Cetus | Started Cetus Manufacturing Module 5687 | -6/Cetus | Manufactured an Enhanced Grunt 5712 | -6/Cetus | Manufactured an Enhanced Grunt 5737 | -6/Cetus | Manufactured an Enhanced Grunt 5762 | -6/Cetus | Manufactured an Enhanced Grunt 5787 | -6/Cetus | Manufactured an Enhanced Grunt 5880 | -6/Cetus | System corruption reached 10% 5943 | -6/Cetus | Discovered new exit (range 15) 5975 | -6/Cetus | Entered Archives 5975 | -6/Archives | Accompanied by 10 allies 6037 | -6/Archives | Discovered new exit (range 15) 6067 | -6/Archives | Discovered new exit (range 16) 6089 | -6/Archives | Discovered new exit (range 13) 6120 | -6/Archives | Entered Hub_04(d) 6120 | -6/Hub_04(d) | Accompanied by 9 allies 6243 | -6/Hub_04(d) | Garrison activated, responded to threat 6312 | -6/Hub_04(d) | Retrieved Zion intel report: Active Terminals 6433 | -6/Hub_04(d) | Retrieved Zion intel report: Unaware Analyses 6470 | -6/Hub_04(d) | First assault squad dispatched 6541 | -6/Hub_04(d) | Lost 3 allies 6614 | -6/Hub_04(d) | Retrieved Zion intel report: Prototype Schematics 6760 | -6/Hub_04(d) | High security lockdown imminent 6840 | -6/Hub_04(d) | High security lockdown engaged 6892 | -6/Hub_04(d) | Spotted B-75 Beast 6904 | -6/Hub_04(d) | Allies destroyed B-75 Beast 6964 | -6/Hub_04(d) | Core integrity fell below 20% 6964 | -6/Hub_04(d) | Identified RU-N14's Throwing Claymores (x4) 6973 | -6/Hub_04(d) | Lost 3 allies 6984 | -6/Hub_04(d) | Destroyed by Y-54 Guardian with Flak Gun Last Messages --------------- 06965_ Bore Cannon destroyed. 06966_ Slug penetrates Wall. 06966_ Critical hit (Destroy). 06969_ Penetrated by Slug. 06970_ Y-54 Guardian destroyed. 06970_ Destroyed Shock Rifle. 06973_ Penetrated by Slug. 06973_ KE Penetrator destroyed. 06974_ Centrium Heavy Treads destroyed. 06976_ Penetrated by Slug. 06977_ P-60 Hacker resets Y-54 Guardian, system corruption cleaned. 06979_ Adv. Heat Sink destroyed. 06979_ Neutron Cannon destroyed. 06979_ Penetrated by Slug. 06979_ Centrium Medium Armor Plating destroyed. 06979_ RU-N14's Throwing Claymores expended. 06979_ Destroyed Targeting Computer. 06979_ H-66 Slayer destroyed. 06981_ Dropped Self-destruct Interrupter. 06983_ Y-54 Guardian destroyed. Map ----- +----------------------------------------------------+ | ????????????????????#############???? | | ###########?????????# #???? | | / #?????????#! " #???? | | ] #?????????# """ #???? | | " #?????????# """"" #???? | | """ #?????????# """"""" #???? | | """"" #?????????# """"" #???? | | """"""" #?????????# """ #???? | | """"" #?????????# " #???? | | """ #?????????# #???? | | " #?????????# #???? | | #?????????## #++#####???? | | #??????????? # #######?? | | ###################### # # """" ? | | ???????????# +! ; """" ? | | ???????????# """ """ "" %"% ; """" # | | ???????????# ![%# ; """" # | | ############ """ %[== = # | | + ""T" %==/; # | | ############ ! """" !!% # | | ???????????############# [! #+###### | | ???????????????#### # * #??????? | | ???????????????# =[!=%!#??????? | | #??????????????# %%% ! #??????? | | #??????????????# %!!! !! + * =!]# | | ???????????????# ^==!]!&@ ; =!]# | | ???????????????##;!^***/ # =!]# | | ???????????? *=!*** # # | | ??????????? ! %!! ^* #?""" # | | ??????????? [=p #####?? # | | ???????????? =![% ???????? # | | ???????????? Y%% %= ?????????##? | | ???????????? [ *=[% ???????????? | | ????????????? Y%[#* " ???????????? | | ????????????? ?#% T" ???????????? | | ?????????????? ??# "" ???????????? | | ?????????????????+%% ? ???????????? | | ???????????????? ;! ?? ????????????? | | ?????????????????? ??? #????????????? | | ??????????????????????#?????????????? | | ????????????????????????????????????? | | ????????????????????????????????????? | | ????????????????????????????????????? | | ????????????????????????????????????? | | ????????????????????????????????????? | | ????????????????????????????????????? | | ????????????????????????????????????? | | ????????????????????????????????????? | | ????????????????????????????????????? | | ????????????????????????????????????? | +----------------------------------------------------+ Best States ------------- Heat Dissipation 75 Coolant Potential 65 Energy Generation 35 Energy Capacity 540 Matter Stores 300 Matter Capacity 300 Sight Range 16 Robot Scan Range 16 Terrain Scan Density 10 Armor Coverage 450 Resistance: EX 50 Weapon Cycling 15 Evasion (%) 40 Targeting Accuracy 5 Target Analysis 5 Recoil Reduction 4 Item Schematics ----------------- F-cell Engine | -6/Hub_04(d) | Z-intel Cld. Pulse Rifle | -6/Hub_04(d) | Z-intel Imp. VTOL Module | -6/Hub_04(d) | Z-intel Gui. EMP Blaster | -6/Hub_04(d) | Z-intel Biomechanical Wings | -6/Hub_04(d) | Z-intel Cld. Cesium-ion Thruster | -6/Hub_04(d) | Z-intel Gravity Neutralizer | -6/Hub_04(d) | Z-intel Imp. Cesium-ion Thruster | -6/Hub_04(d) | Z-intel Cld. Aerolev Unit | -6/Hub_04(d) | Z-intel Prc. Shock Rifle | -6/Hub_04(d) | Z-intel Robot Schematics ------------------ None Fabricated ------------ Nothing Alien Tech Used ----------------- None Achievements -------------- Project G-00 Challenges ------------ None Game ------ Seed NodeDecoderLegs Manual? 0 Play Time 01:31:01 Cumulative 72.0 hours Start 2025.03.27 @ 23:27:54 End 2025.03.28 @ 01:03:09 Sessions 1 Manual Loads 0 Difficulty Rogue Special Mode None Game No. 70 Rogue 70 Adventurer 0 Explorer 0 Win Type - Total 0 Types 0/0/0/0/0/0/0/0/0 Lore% 7 Gallery% 37 Achievement% 31 Wizard Run 0 Options --------- Layout 0 ASCII 0 Keyboard 0 Movement Mouse Keybinds 0 Fullscreen 2 Font 12/Smallcaps Map View 41x27 Zoom Use 95% Tactical HUD 1 Map Filters NONE Filters NONE Steam 1 RUN: 392baa88-b08b-4610-ae49-3f3c865a2e29